[Event "Turkish Cup 2022"]
[Site "Sakarya"]
[Date "2022.03.30"]
[Round "9.47"]
[White "Sahin, Handenur"]
[Black "Gunduz, Umut Erdem"]
[Result "0-1"]
[ECO "C77"]
[WhiteElo "1997"]
[BlackElo "2258"]
[Annotator "NA"]
[PlyCount "68"]
[EventDate "2022.03.25"]
[EventType "swiss"]
[EventCountry "TUR"]
[SourceTitle "playchess.com"]
[Source "ChessBase"]
[SourceQuality "1"]
[TimeControl "5400+30"]

1. e4 e5 2. Nf3 Nc6 3. Bb5 a6 4. Ba4 Nf6 5. d3 b5 6. Bb3 Be7 7. Nc3 d6 8. a3 O-O 9. O-O Nb8 10. Ne2 Nbd7 11. Ba2 c5 12. Ng3 Nb6 13. Qe2 Re8 14. Bg5 h6 15. Bd2 Bf8 16. Nh4 d5 17. Nhf5 Kh7 18. Ba5 Be6 19. exd5 Nfxd5 20. Qe4 Nf6 21. Qb7 Bxa2 22. Bxb6 Qd5 23. Qc7 Rec8 24. c4 bxc4 25. dxc4 Bxc4 26. Rfd1 Rxc7 27. Rxd5 Nxd5 28. Bxc7 Nxc7 29. Ne3 Be6 30. Rc1 Rb8 31. b4 cxb4 32. axb4 Nd5 33. Nc4 f6 34. Ra1 Nxb4 0-1

[Event "Turkish Cup 2022"]
[Site "Sakarya"]
[Date "2022.03.31"]
[Round "10.1"]
[White "Kilic, Eray"]
[Black "Yavuz, Efe Metehan"]
[Result "0-1"]
[ECO "C65"]
[WhiteElo "2088"]
[BlackElo "2054"]
[Annotator "NA"]
[PlyCount "130"]
[EventDate "2022.03.25"]
[EventType "swiss"]
[EventCountry "TUR"]
[SourceTitle "playchess.com"]
[Source "ChessBase"]
[SourceQuality "1"]
[TimeControl "5400+30"]

1. e4 {[%emt 0:01:00]} e5 {[%emt 0:01:00]} 2. Nf3 {[%emt 0:00:30]} Nc6 {[%emt 0:00:30]} 3. Bb5 {[%emt 0:00:00]} Nf6 {[%emt 0:00:30]} 4. d3 {[%emt 0:00:00]} Bc5 {[%emt 0:00:30]} 5. Bxc6 {[%emt 0:00:30]} dxc6 {[%emt 0:00:30]} 6. h3 {[%emt 0:00:30]} O-O {[%emt 0:00:30]} 7. O-O {[%emt 0:00:30]} Qe7 {[%emt 0:09:30]} 8. Be3 {[%emt 0:03:30]} Nd7 {[%emt 0:08:30]} 9. Nbd2 {[%emt 0:04:30]} a5 {[%emt 0:12:30]} 10. Nc4 {[%emt 0:05:30]} Bd6 {[%emt 0:09:30]} 11. a4 {[%emt 0:19:30]} b6 {[%emt 0:02:30]} 12. Re1 {[%emt 0:10:30]} Ba6 {[%emt 0:04:30]} 13. c3 {[%emt 0:01:30]} Bxc4 {[%emt 0:05:30]} 14. dxc4 {[%emt 0:00:30]} Bc5 {[%emt 0:00:30]} 15. Nh4 {[%emt 0:13:30]} Qe6 {[%emt 0:13:30]} 16. Nf5 {[%emt 0:08:30]} g6 {[%emt 0:02:30]} 17. Nh6+ {[%emt 0:08:32]} Kg7 {[%emt 0:04:30]} 18. Qe2 {[%emt 0:01:26]} Bxe3 {[%emt 0:03:17]} 19. Qxe3 {[%emt 0:00:04]} Rad8 {[%emt 0:01:48]} 20. Rad1 {[%emt 0:02:11]} Nc5 {[%emt 0:03:55]} 21. Rxd8 {[%emt 0:11:35]} Rxd8 {[%emt 0:00:30]} 22. b4 {[%emt 0:00:00]} Nxa4 {[%emt 0:04:59]} 23. Ng4 {[%emt 0:00:35]} f6 {[%emt 0:04:24]} 24. c5 {[%emt 0:01:16]} axb4 {[%emt 0:01:23]} 25. cxb4 {[%emt 0:00:01]} Qe7 {[%emt 0:01:07]} 26. h4 {[%emt 0:02:30]} Qe6 {[%emt 0:01:13]} 27. f3 {[%emt 0:03:00]} Kg8 {[%emt 0:00:24]} 28. Nh6+ {[%emt 0:01:23]} Kh8 {[%emt 0:00:30]} 29. f4 {[%emt 0:00:31]} Kg7 {[%emt 0:02:02]} 30. f5 {[%emt 0:01:19]} Qc4 {[%emt 0:00:40]} 31. fxg6 {[%emt 0:00:34]} hxg6 {[%emt 0:00:00]} 32. Kh1 {[%emt 0:00:25]} Qd4 {[%emt 0:00:39]} 33. Qf3 {[%emt 0:00:30]} Qd3 {[%emt 0:01:05]} 34. Nf5+ {[%emt 0:00:32]} gxf5 {[%emt 0:00:50]} 35. Qxf5 {[%emt 0:00:30]} Qg3 {[%emt 0:00:30]} 36. Rf1 {[%emt 0:00:30]} Qxh4+ {[%emt 0:00:30]} 37. Kg1 {[%emt 0:00:00]} Qg5 {[%emt 0:00:19]} 38. Qh3 {[%emt 0:00:10]} Rh8 {[%emt 0:00:30]} 39. Qd7+ {[%emt 0:00:30]} Kg6 {[%emt 0:00:48]} 40. Rf3 {[%emt 0:00:00]} bxc5 {[%emt 0:00:57]} 41. Kf2 {[%emt 0:00:00]} Rh4 {[%emt 0:01:03]} 42. Qe8+ {[%emt 0:02:41]} Kh7 {[%emt 0:00:30]} 43. Qd7+ {[%emt 0:00:30]} Qg7 {[%emt 0:00:30]} 44. Qf5+ {[%emt 0:00:30]} Qg6 {[%emt 0:00:13]} 45. Qd7+ {[%emt 0:00:00]} Kh6 {[%emt 0:00:30]} 46. Qd2+ {[%emt 0:00:00]} Kh7 {[%emt 0:00:35]} 47. Qd7+ {[%emt 0:00:00]} Qg7 {[%emt 0:00:10]} 48. Qf5+ {[%emt 0:00:07]} Kh6 {[%emt 0:00:03]} 49. Qe6 {[%emt 0:00:25]} Rf4 {[%emt 0:00:22]} 50. Rxf4 {[%emt 0:00:32]} exf4 {[%emt 0:00:30]} 51. Qh3+ {[%emt 0:00:00]} Kg6 {[%emt 0:00:07]} 52. Qf5+ {[%emt 0:00:12]} Kf7 {[%emt 0:00:10]} 53. Qd7+ {[%emt 0:00:26]} Kg8 {[%emt 0:00:02]} 54. Qe8+ {[%emt 0:00:41]} Qf8 {[%emt 0:00:30]} 55. Qg6+ {[%emt 0:00:30]} Kh8 {[%emt 0:00:00]} 56. e5 {[%emt 0:02:32]} fxe5 {[%emt 0:00:14]} 57. Qh5+ {[%emt 0:00:30]} Kg7 {[%emt 0:00:30]} 58. Qg4+ {[%emt 0:00:30]} Kf6 {[%emt 0:00:01]} 59. Qh4+ {[%emt 0:00:00]} Ke6 {[%emt 0:00:30]} 60. Qg4+ {[%emt 0:00:00]} Ke7 {[%emt 0:00:27]} 61. Qh4+ {[%emt 0:00:02]} Kd7 {[%emt 0:00:30]} 62. Qh7+ {[%emt 0:00:30]} Kc8 {[%emt 0:00:30]} 63. b5 {[%emt 0:00:00]} cxb5 {[%emt 0:00:28]} 64. Qe4 {[%emt 0:00:00]} Kb8 {[%emt 0:00:39]} 65. Qc6 {[%emt 0:00:05]} Nc3 {[%emt 0:00:00]} 0-1

[Event "Turkish Cup 2022"]
[Site "Sakarya"]
[Date "2022.03.31"]
[Round "10.2"]
[White "Yaran, Siar"]
[Black "Samani, Yamac"]
[Result "1-0"]
[ECO "A22"]
[WhiteElo "2272"]
[BlackElo "2257"]
[Annotator "NA"]
[PlyCount "133"]
[EventDate "2022.03.25"]
[EventType "swiss"]
[EventCountry "TUR"]
[SourceTitle "playchess.com"]
[Source "ChessBase"]
[SourceQuality "1"]
[TimeControl "5400+30"]

1. c4 {[%emt 0:01:00]} e5 {[%emt 0:01:00]} 2. Nc3 {[%emt 0:00:30]} Nf6 {[%emt 0:00:30]} 3. g3 {[%emt 0:00:30]} Bb4 {[%emt 0:00:30]} 4. Bg2 {[%emt 0:00:30]} O-O {[%emt 0:00:30]} 5. Nf3 {[%emt 0:00:30]} Re8 {[%emt 0:00:30]} 6. O-O {[%emt 0:00:30]} Bxc3 {[%emt 0:00:30]} 7. dxc3 {[%emt 0:00:30]} d6 {[%emt 0:03:30]} 8. Ne1 {[%emt 0:11:30]} a5 {[%emt 0:00:30]} 9. Nc2 {[%emt 0:01:30]} Nbd7 {[%emt 0:02:30]} 10. Ne3 {[%emt 0:01:30]} a4 {[%emt 0:07:30]} 11. Qc2 {[%emt 0:07:30]} Nc5 {[%emt 0:01:30]} 12. Rb1 {[%emt 0:04:30]} e4 {[%emt 0:20:30]} 13. b4 {[%emt 0:05:30]} axb3 {[%emt 0:00:30]} 14. axb3 {[%emt 0:03:30]} Qe7 {[%emt 0:07:30]} 15. Rd1 {[%emt 0:08:30]} Bd7 {[%emt 0:02:30]} 16. Nd5 {[%emt 0:07:30]} Nxd5 {[%emt 0:00:30]} 17. cxd5 {[%emt 0:00:30]} Bf5 {[%emt 0:06:30]} 18. Be3 {[%emt 0:00:30]} b6 {[%emt 0:04:30]} 19. c4 {[%emt 0:15:30]} h5 {[%emt 0:04:30]} 20. h3 {[%emt 0:01:30]} Nd7 {[%emt 0:06:30]} 21. Qc3 {[%emt 0:03:30]} Ra2 {[%emt 0:04:30]} 22. Ra1 {[%emt 0:06:09]} Rea8 {[%emt 0:04:46]} 23. Rxa2 {[%emt 0:00:24]} Rxa2 {[%emt 0:00:14]} 24. Ra1 {[%emt 0:00:11]} Rxa1+ {[%emt 0:00:30]} 25. Qxa1 {[%emt 0:00:08]} Kh7 {[%emt 0:03:25]} 26. Qa7 {[%emt 0:00:54]} Qd8 {[%emt 0:00:25]} 27. Bd4 {[%emt 0:01:10]} f6 {[%emt 0:02:45]} 28. Qa1 {[%emt 0:02:01]} Bg6 {[%emt 0:01:33]} 29. Qc1 {[%emt 0:01:29]} Nc5 {[%emt 0:01:37]} 30. Qe3 {[%emt 0:00:42]} Qe8 {[%emt 0:00:18]} 31. Kh2 {[%emt 0:01:14]} Kg8 {[%emt 0:01:16]} 32. g4 {[%emt 0:00:33]} hxg4 {[%emt 0:01:00]} 33. hxg4 {[%emt 0:00:05]} Kf7 {[%emt 0:02:14]} 34. Kg3 {[%emt 0:00:33]} Bh7 {[%emt 0:02:18]} 35. g5 {[%emt 0:03:44]} Bf5 {[%emt 0:02:28]} 36. Qf4 {[%emt 0:04:08]} Kg6 {[%emt 0:02:12]} 37. gxf6 {[%emt 0:03:20]} gxf6 {[%emt 0:00:30]} 38. Bh3 {[%emt 0:01:20]} Qd7 {[%emt 0:00:24]} 39. Qh4 {[%emt 0:03:07]} Bxh3 {[%emt 0:01:12]} 40. Qxf6+ {[%emt 0:00:04]} Kh7 {[%emt 0:00:39]} 41. Qh8+ {[%emt 0:00:30]} Kg6 {[%emt 0:00:30]} 42. Qg8+ {[%emt 0:00:24]} Kh5 {[%emt 0:00:16]} 43. Qh8+ {[%emt 0:00:33]} Kg6 {[%emt 0:00:20]} 44. Qf6+ {[%emt 0:00:04]} Kh7 {[%emt 0:01:43]} 45. Qh4+ {[%emt 0:00:04]} Kg6 {[%emt 0:00:42]} 46. Bxc5 {[%emt 0:00:41]} Bf1 {[%emt 0:01:38]} 47. Qxe4+ {[%emt 0:02:22]} Qf5 {[%emt 0:01:06]} 48. Qxf5+ {[%emt 0:00:51]} Kxf5 {[%emt 0:00:30]} 49. Bxd6 {[%emt 0:00:26]} cxd6 {[%emt 0:00:11]} 50. Kf3 {[%emt 0:00:12]} Ke5 {[%emt 0:00:31]} 51. Ke3 {[%emt 0:00:07]} Bg2 {[%emt 0:01:08]} 52. f3 {[%emt 0:00:54]} Bh3 {[%emt 0:00:28]} 53. b4 {[%emt 0:00:43]} Bf5 {[%emt 0:00:58]} 54. f4+ {[%emt 0:00:30]} Kf6 {[%emt 0:00:30]} 55. Kd4 {[%emt 0:00:00]} Bb1 {[%emt 0:00:02]} 56. e4 {[%emt 0:00:10]} Ke7 {[%emt 0:00:01]} 57. e5 {[%emt 0:00:16]} dxe5+ {[%emt 0:00:30]} 58. fxe5 {[%emt 0:00:30]} Bf5 {[%emt 0:00:06]} 59. c5 {[%emt 0:01:36]} bxc5+ {[%emt 0:00:30]} 60. bxc5 {[%emt 0:00:07]} Bh3 {[%emt 0:00:00]} 61. c6 {[%emt 0:00:25]} Bg4 {[%emt 0:01:07]} 62. Kc5 {[%emt 0:00:30]} Bh3 {[%emt 0:00:00]} 63. Kb6 {[%emt 0:00:13]} Kd8 {[%emt 0:00:09]} 64. Kb7 {[%emt 0:00:28]} Bc8+ {[%emt 0:00:49]} 65. Kb8 {[%emt 0:00:30]} Ba6 {[%emt 0:00:00]} 66. e6 {[%emt 0:00:26]} Ke7 {[%emt 0:00:05]} 67. c7 {[%emt 0:00:19]} 1-0